[Event "Titled Tuesday Blitz February 15 Early 2022"]
[White "Ljukin, Sergei"]
[Black "Goryachkina, Aleksandra"]
[WhiteFideId "14102200"]
[BlackFideId "4147103"]
[WhiteElo "2312"]
[BlackElo "2426"]
[Result "0-1"]
[Round "07"]
[TimeControl "180+1"]
[Date "2022.02.15"]
[WhiteClock "0:00:01"]
[BlackClock "0:00:46"]

1. e4 {[%clk 0:02:54]}  e6 {[%clk 0:02:59]} 2. d4 {[%clk 0:02:53]}  d5 {[%clk 0:02:59]} 3. Nc3 {[%clk 0:02:54]}  Bb4 {[%clk 0:02:59]} 4. e5 {[%clk 0:02:54]}  c5 {[%clk 0:02:58]} 5. a3 {[%clk 0:02:54]}  Bxc3+ {[%clk 0:02:58]} 6. bxc3 {[%clk 0:02:55]}  Ne7 {[%clk 0:02:57]} 7. h4 {[%clk 0:02:55]}  Qc7 {[%clk 0:02:56]} 8. h5 {[%clk 0:02:53]}  cxd4 {[%clk 0:02:53]} 9. cxd4 {[%clk 0:02:52]}  Qc3+ {[%clk 0:02:53]} 10. Bd2 {[%clk 0:02:49]}  Qxd4 {[%clk 0:02:52]} 11. Nf3 {[%clk 0:02:49]}  Qe4+ {[%clk 0:02:48]} 12. Be2 {[%clk 0:02:20]}  Nf5 {[%clk 0:02:45]} 13. Kf1 {[%clk 0:01:09]}  Nc6 {[%clk 0:02:36]} 14. Bd3 {[%clk 0:01:09]}  Qg4 {[%clk 0:02:27]} 15. h6 {[%clk 0:00:55]}  gxh6 {[%clk 0:02:20]} 16. Bxf5 {[%clk 0:00:38]}  Qxf5 {[%clk 0:02:09]} 17. Bxh6 {[%clk 0:00:38]}  Rg8 {[%clk 0:01:58]} 18. Qe2 {[%clk 0:00:27]}  Bd7 {[%clk 0:01:51]} 19. Rb1 {[%clk 0:00:24]}  O-O-O {[%clk 0:01:47]} 20. Qb5 {[%clk 0:00:17]}  b6 {[%clk 0:01:36]} 21. Qa6+ {[%clk 0:00:17]}  Kb8 {[%clk 0:01:18]} 22. Be3 {[%clk 0:00:16]}  Bc8 {[%clk 0:01:05]} 23. Qb5 {[%clk 0:00:15]}  d4 {[%clk 0:00:51]} 24. Qxc6 {[%clk 0:00:06]}  dxe3 {[%clk 0:00:48]} 25. fxe3 {[%clk 0:00:01]}  Bb7 {[%clk 0:00:46]} 0-1


[Site "https://www.chess.com"]

[Event "Titled Tuesday Blitz February 15 Early 2022"]
[White "Maltsevskaya, Aleksandra"]
[Black "Gelman, Alexander"]
[WhiteFideId "24174041"]
[BlackFideId "4118316"]
[WhiteElo "2542"]
[BlackElo "2747"]
[Result "1-0"]
[Round "07"]
[TimeControl "180+1"]
[Date "2022.02.15"]
[WhiteClock "0:01:12"]
[BlackClock "0:00:01"]

1. e4 {[%clk 0:02:55]}  c5 {[%clk 0:02:58]} 2. Nf3 {[%clk 0:02:56]}  e6 {[%clk 0:02:56]} 3. d4 {[%clk 0:02:56]}  cxd4 {[%clk 0:02:56]} 4. Nxd4 {[%clk 0:02:57]}  a6 {[%clk 0:02:57]} 5. Bd3 {[%clk 0:02:56]}  d6 {[%clk 0:02:57]} 6. c4 {[%clk 0:02:52]}  Nf6 {[%clk 0:02:56]} 7. Nc3 {[%clk 0:02:52]}  Be7 {[%clk 0:02:52]} 8. O-O {[%clk 0:02:51]}  Bd7 {[%clk 0:02:52]} 9. b3 {[%clk 0:02:51]}  Nc6 {[%clk 0:02:52]} 10. Nf3 {[%clk 0:02:50]}  O-O {[%clk 0:02:40]} 11. Bb2 {[%clk 0:02:50]}  Qb8 {[%clk 0:02:26]} 12. Qd2 {[%clk 0:02:39]}  Rd8 {[%clk 0:02:24]} 13. Rad1 {[%clk 0:02:30]}  b5 {[%clk 0:02:18]} 14. cxb5 {[%clk 0:02:30]}  axb5 {[%clk 0:02:18]} 15. Bxb5 {[%clk 0:02:31]}  Nxe4 {[%clk 0:01:54]} 16. Nxe4 {[%clk 0:02:12]}  Qxb5 {[%clk 0:01:54]} 17. Nxd6 {[%clk 0:02:13]}  Bxd6 {[%clk 0:01:24]} 18. Qxd6 {[%clk 0:02:13]}  Rxa2 {[%clk 0:01:24]} 19. Rd2 {[%clk 0:01:45]}  Be8 {[%clk 0:01:01]} 20. Qg3 {[%clk 0:01:40]}  e5 {[%clk 0:00:21]} 21. Rxd8 {[%clk 0:01:29]}  Nxd8 {[%clk 0:00:21]} 22. Bxe5 {[%clk 0:01:30]}  Ne6 {[%clk 0:00:21]} 23. Nd4 {[%clk 0:01:20]}  Qb7 {[%clk 0:00:09]} 24. Nf5 {[%clk 0:01:15]}  f6 {[%clk 0:00:01]} 25. Bxf6 {[%clk 0:01:15]}  Bb5 {[%clk 0:00:01]} 26. Re1 {[%clk 0:01:12]} 1-0


[Site "https://www.chess.com"]

[Event "Titled Tuesday Blitz February 15 Early 2022"]
[White "Martinez Alcantara, Jose Eduardo"]
[Black "Gozzoli, Yannick"]
[WhiteFideId "3805662"]
[BlackFideId "616915"]
[WhiteElo "2690"]
[BlackElo "2609"]
[Result "0-1"]
[Round "07"]
[TimeControl "180+1"]
[Date "2022.02.15"]
[WhiteClock "0:02:00"]
[BlackClock "0:01:08"]

1. e4 {[%clk 0:03:00]}  e5 {[%clk 0:02:58]} 2. Nf3 {[%clk 0:03:01]}  Nc6 {[%clk 0:02:54]} 3. Bb5 {[%clk 0:03:01]}  a6 {[%clk 0:02:53]} 4. Ba4 {[%clk 0:03:02]}  Nf6 {[%clk 0:02:51]} 5. d3 {[%clk 0:03:02]}  d6 {[%clk 0:02:50]} 6. c3 {[%clk 0:03:02]}  g6 {[%clk 0:02:46]} 7. h3 {[%clk 0:03:01]}  Bg7 {[%clk 0:02:46]} 8. O-O {[%clk 0:03:01]}  O-O {[%clk 0:02:41]} 9. Be3 {[%clk 0:03:02]}  Re8 {[%clk 0:02:36]} 10. Nbd2 {[%clk 0:03:01]}  b5 {[%clk 0:02:34]} 11. Bb3 {[%clk 0:03:00]}  Be6 {[%clk 0:02:33]} 12. a4 {[%clk 0:02:58]}  b4 {[%clk 0:02:29]} 13. a5 {[%clk 0:02:56]}  Bxb3 {[%clk 0:02:27]} 14. Qxb3 {[%clk 0:02:56]}  Qd7 {[%clk 0:02:26]} 15. Qa4 {[%clk 0:02:51]}  Rab8 {[%clk 0:02:24]} 16. c4 {[%clk 0:02:37]}  Nh5 {[%clk 0:02:10]} 17. Qd1 {[%clk 0:02:27]}  Nf4 {[%clk 0:02:02]} 18. Nb3 {[%clk 0:02:08]}  Ne6 {[%clk 0:01:53]} 19. Ng5 {[%clk 0:01:58]}  Nxg5 {[%clk 0:01:48]} 20. Bxg5 {[%clk 0:01:59]}  f5 {[%clk 0:01:48]} 21. f3 {[%clk 0:01:54]}  Rf8 {[%clk 0:01:42]} 22. Qd2 {[%clk 0:01:43]}  Nd8 {[%clk 0:01:38]} 23. Be3 {[%clk 0:01:34]}  f4 {[%clk 0:01:34]} 24. Bf2 {[%clk 0:01:34]}  c5 {[%clk 0:01:35]} 25. Rfe1 {[%clk 0:01:24]}  Ne6 {[%clk 0:01:35]} 26. Kf1 {[%clk 0:01:24]}  Bf6 {[%clk 0:01:26]} 27. Ke2 {[%clk 0:01:24]}  Qd8 {[%clk 0:01:26]} 28. Rh1 {[%clk 0:01:22]}  g5 {[%clk 0:01:20]} 29. Kd1 {[%clk 0:01:21]}  Rb7 {[%clk 0:01:17]} 30. Kc2 {[%clk 0:01:22]}  Rg7 {[%clk 0:01:17]} 31. Rag1 {[%clk 0:01:22]}  h5 {[%clk 0:01:13]} 32. Be1 {[%clk 0:01:18]}  Kf7 {[%clk 0:01:09]} 33. Bf2 {[%clk 0:01:17]}  Rh8 {[%clk 0:01:04]} 34. Kb1 {[%clk 0:01:15]}  Rhh7 {[%clk 0:00:59]} 35. Qd1 {[%clk 0:01:15]}  Qd7 {[%clk 0:00:54]} 36. g4 {[%clk 0:01:10]}  h4 {[%clk 0:00:50]} 37. Kc2 {[%clk 0:01:08]}  Kg6 {[%clk 0:00:51]} 38. Qd2 {[%clk 0:01:08]}  Kf7 {[%clk 0:00:51]} 39. Ra1 {[%clk 0:01:09]}  Kg6 {[%clk 0:00:51]} 40. Kd1 {[%clk 0:01:09]}  Rg8 {[%clk 0:00:52]} 41. Ke2 {[%clk 0:01:10]}  Rb8 {[%clk 0:00:52]} 42. Rhc1 {[%clk 0:01:10]}  Rhh8 {[%clk 0:00:53]} 43. Kf1 {[%clk 0:01:11]}  Rhc8 {[%clk 0:00:54]} 44. Ra2 {[%clk 0:01:10]}  Rc7 {[%clk 0:00:55]} 45. Kg1 {[%clk 0:01:10]}  Rcc8 {[%clk 0:00:56]} 46. Qd1 {[%clk 0:01:10]}  Rc7 {[%clk 0:00:56]} 47. Rca1 {[%clk 0:01:11]}  Rcc8 {[%clk 0:00:57]} 48. Nd2 {[%clk 0:01:12]}  Rc7 {[%clk 0:00:57]} 49. Qa4 {[%clk 0:01:12]}  Qxa4 {[%clk 0:00:57]} 50. Rxa4 {[%clk 0:01:13]}  Rcc8 {[%clk 0:00:57]} 51. Nb3 {[%clk 0:01:14]}  Kf7 {[%clk 0:00:58]} 52. R4a2 {[%clk 0:01:14]}  Ke7 {[%clk 0:00:58]} 53. Kf1 {[%clk 0:01:15]}  Kd7 {[%clk 0:00:59]} 54. Ke2 {[%clk 0:01:16]}  Rc7 {[%clk 0:01:00]} 55. Kd1 {[%clk 0:01:17]}  Rcc8 {[%clk 0:01:01]} 56. Kc2 {[%clk 0:01:18]}  Rc7 {[%clk 0:01:01]} 57. Rc1 {[%clk 0:01:19]}  Rcc8 {[%clk 0:01:02]} 58. Rd1 {[%clk 0:01:19]}  Rc7 {[%clk 0:01:03]} 59. Raa1 {[%clk 0:01:19]}  Rcc8 {[%clk 0:01:04]} 60. Re1 {[%clk 0:01:20]}  Rc7 {[%clk 0:01:04]} 61. Rf1 {[%clk 0:01:21]}  Rcc8 {[%clk 0:01:04]} 62. Rg1 {[%clk 0:01:22]}  Rc7 {[%clk 0:01:01]} 63. Rh1 {[%clk 0:01:23]}  Rcc8 {[%clk 0:01:01]} 64. Rad1 {[%clk 0:01:24]}  Rc7 {[%clk 0:01:02]} 65. Be1 {[%clk 0:01:24]}  Rcc8 {[%clk 0:01:02]} 66. Bf2 {[%clk 0:01:24]}  Rc7 {[%clk 0:01:02]} 67. Nd2 {[%clk 0:01:24]}  Rcc8 {[%clk 0:01:02]} 68. Rb1 {[%clk 0:01:23]}  Rc7 {[%clk 0:01:02]} 69. Nb3 {[%clk 0:01:24]}  Rcc8 {[%clk 0:01:02]} 70. Nc1 {[%clk 0:01:24]}  Nd8 {[%clk 0:01:02]} 71. Ra1 {[%clk 0:01:24]}  Ne6 {[%clk 0:01:02]} 72. Kd1 {[%clk 0:01:24]}  Rc7 {[%clk 0:01:02]} 73. Ke2 {[%clk 0:01:24]}  Rcc8 {[%clk 0:01:03]} 74. Rd1 {[%clk 0:01:25]}  Rc7 {[%clk 0:01:03]} 75. Kf1 {[%clk 0:01:26]}  Rcc8 {[%clk 0:01:04]} 76. Nb3 {[%clk 0:01:26]}  Rc7 {[%clk 0:01:04]} 77. Rdc1 {[%clk 0:01:27]}  Rcc8 {[%clk 0:01:05]} 78. Be1 {[%clk 0:01:28]}  Rc7 {[%clk 0:01:05]} 79. Bd2 {[%clk 0:01:29]}  Rcc8 {[%clk 0:01:06]} 80. Rcb1 {[%clk 0:01:30]}  Rc7 {[%clk 0:01:06]} 81. Nc1 {[%clk 0:01:30]}  Rcc8 {[%clk 0:01:06]} 82. Ne2 {[%clk 0:01:31]}  Rc7 {[%clk 0:01:07]} 83. Be1 {[%clk 0:01:31]}  Rcc8 {[%clk 0:01:07]} 84. b3 {[%clk 0:01:31]}  Nd4 {[%clk 0:01:07]} 85. Nxd4 {[%clk 0:01:30]}  exd4 {[%clk 0:01:07]} 86. Bf2 {[%clk 0:01:28]}  Be5 {[%clk 0:01:08]} 87. Rb2 {[%clk 0:01:29]}  Rc7 {[%clk 0:01:08]} 88. Ke2 {[%clk 0:01:30]}  Rcc8 {[%clk 0:01:09]} 89. Kd1 {[%clk 0:01:31]}  Rc7 {[%clk 0:01:09]} 90. Kc2 {[%clk 0:01:32]}  Rcc8 {[%clk 0:01:10]} 91. Rab1 {[%clk 0:01:33]}  Rc7 {[%clk 0:01:10]} 92. Ra2 {[%clk 0:01:33]}  Rcc8 {[%clk 0:01:10]} 93. Rba1 {[%clk 0:01:34]}  Rc7 {[%clk 0:01:11]} 94. Be1 {[%clk 0:01:35]}  Rcc8 {[%clk 0:01:11]} 95. Bd2 {[%clk 0:01:36]}  Rc7 {[%clk 0:01:11]} 96. Rh1 {[%clk 0:01:37]}  Rcc8 {[%clk 0:01:12]} 97. Be1 {[%clk 0:01:38]}  Rc7 {[%clk 0:01:12]} 98. Bxh4 {[%clk 0:01:39]}  gxh4 {[%clk 0:01:12]} 99. Rha1 {[%clk 0:01:39]}  Rg8 {[%clk 0:01:11]} 100. Kd1 {[%clk 0:01:40]}  Ke6 {[%clk 0:01:12]} 101. Ke2 {[%clk 0:01:40]}  Kf6 {[%clk 0:01:13]} 102. Kf1 {[%clk 0:01:41]}  Kg5 {[%clk 0:01:14]} 103. Kg2 {[%clk 0:01:41]}  Rb8 {[%clk 0:01:12]} 104. Kf1 {[%clk 0:01:42]}  Bf6 {[%clk 0:01:12]} 105. Kg2 {[%clk 0:01:42]}  Rbb7 {[%clk 0:01:11]} 106. Kf1 {[%clk 0:01:43]}  Kg6 {[%clk 0:01:04]} 107. Kg2 {[%clk 0:01:43]}  Kf7 {[%clk 0:01:04]} 108. Kf1 {[%clk 0:01:44]}  Ke6 {[%clk 0:01:05]} 109. Kf2 {[%clk 0:01:44]}  Kd7 {[%clk 0:01:04]} 110. Kf1 {[%clk 0:01:45]}  Ke6 {[%clk 0:00:59]} 111. Rg2 {[%clk 0:01:45]}  Bg5 {[%clk 0:00:59]} 112. Re2 {[%clk 0:01:45]}  Ke5 {[%clk 0:00:59]} 113. Rea2 {[%clk 0:01:45]}  Rc6 {[%clk 0:01:00]} 114. Ke2 {[%clk 0:01:46]}  Rcc7 {[%clk 0:01:01]} 115. Kd1 {[%clk 0:01:47]}  Rc6 {[%clk 0:01:01]} 116. Kc1 {[%clk 0:01:47]}  Rcc7 {[%clk 0:01:02]} 117. Kc2 {[%clk 0:01:48]}  Rc6 {[%clk 0:01:03]} 118. Rd1 {[%clk 0:01:49]}  Rcc7 {[%clk 0:01:04]} 119. Raa1 {[%clk 0:01:47]}  Rc6 {[%clk 0:01:03]} 120. Kb1 {[%clk 0:01:47]}  Rcc7 {[%clk 0:01:04]} 121. Kb2 {[%clk 0:01:48]}  Rc6 {[%clk 0:01:04]} 122. Ka2 {[%clk 0:01:49]}  Rcc7 {[%clk 0:01:04]} 123. Rf1 {[%clk 0:01:50]}  Rc6 {[%clk 0:01:04]} 124. Rfe1 {[%clk 0:01:51]}  Rcc7 {[%clk 0:01:04]} 125. Kb1 {[%clk 0:01:51]}  Rc6 {[%clk 0:01:04]} 126. Re2 {[%clk 0:01:52]}  Rcc7 {[%clk 0:01:05]} 127. Rea2 {[%clk 0:01:53]}  Rc6 {[%clk 0:01:06]} 128. Ra4 {[%clk 0:01:54]}  Rcc7 {[%clk 0:01:06]} 129. R1a2 {[%clk 0:01:55]}  Rc6 {[%clk 0:01:06]} 130. Rb2 {[%clk 0:01:56]}  Rcc7 {[%clk 0:01:07]} 131. Rc2 {[%clk 0:01:57]}  Rc6 {[%clk 0:01:07]} 132. Kc1 {[%clk 0:01:57]}  Rcc7 {[%clk 0:01:08]} 133. Kd1 {[%clk 0:01:58]}  Rc6 {[%clk 0:01:08]} 134. Rca2 {[%clk 0:01:59]}  Rcc7 {[%clk 0:01:09]} 135. Rxb4 {[%clk 0:02:00]}  Rxb4 {[%clk 0:01:08]} 0-1


[Site "https://www.chess.com"]

[Event "Titled Tuesday Blitz February 15 Early 2022"]
[White "Maung, Maung Kyaw Zaw Hein"]
[Black "Kirillov, Dmitry"]
[WhiteFideId "13001698"]
[BlackFideId "34180572"]
[WhiteElo "1785"]
[BlackElo "2076"]
[Result "1/2-1/2"]
[Round "07"]
[TimeControl "180+1"]
[Date "2022.02.15"]
[WhiteClock "0:01:22"]
[BlackClock "0:00:23"]

1. Nf3 {[%clk 0:02:58]}  Nf6 {[%clk 0:02:59]} 2. c4 {[%clk 0:02:58]}  b6 {[%clk 0:02:59]} 3. d4 {[%clk 0:02:58]}  e6 {[%clk 0:02:59]} 4. Nc3 {[%clk 0:02:58]}  Bb4 {[%clk 0:02:59]} 5. Bg5 {[%clk 0:02:58]}  h6 {[%clk 0:02:53]} 6. Bxf6 {[%clk 0:02:57]}  Qxf6 {[%clk 0:02:53]} 7. Rc1 {[%clk 0:02:57]}  Bb7 {[%clk 0:02:49]} 8. e3 {[%clk 0:02:57]}  O-O {[%clk 0:02:42]} 9. Be2 {[%clk 0:02:57]}  d6 {[%clk 0:02:35]} 10. O-O {[%clk 0:02:56]}  Nd7 {[%clk 0:02:35]} 11. a3 {[%clk 0:02:50]}  Bxc3 {[%clk 0:02:35]} 12. Rxc3 {[%clk 0:02:49]}  e5 {[%clk 0:02:35]} 13. dxe5 {[%clk 0:02:31]}  Nxe5 {[%clk 0:02:36]} 14. Nxe5 {[%clk 0:02:31]}  Qxe5 {[%clk 0:02:20]} 15. Bf3 {[%clk 0:02:25]}  Bxf3 {[%clk 0:02:14]} 16. Qxf3 {[%clk 0:02:26]}  Rae8 {[%clk 0:02:14]} 17. Rd1 {[%clk 0:02:25]}  Qe4 {[%clk 0:02:08]} 18. Qxe4 {[%clk 0:02:21]}  Rxe4 {[%clk 0:02:09]} 19. b4 {[%clk 0:02:16]}  Re5 {[%clk 0:01:55]} 20. g3 {[%clk 0:02:15]}  Rfe8 {[%clk 0:01:48]} 21. Rd4 {[%clk 0:02:06]}  a5 {[%clk 0:01:42]} 22. Kg2 {[%clk 0:02:03]}  f5 {[%clk 0:01:31]} 23. c5 {[%clk 0:01:35]}  axb4 {[%clk 0:01:31]} 24. axb4 {[%clk 0:01:35]}  bxc5 {[%clk 0:01:32]} 25. bxc5 {[%clk 0:01:35]}  Rxc5 {[%clk 0:01:32]} 26. Rxc5 {[%clk 0:01:34]}  dxc5 {[%clk 0:01:33]} 27. Rd5 {[%clk 0:01:27]}  g6 {[%clk 0:01:08]} 28. Rxc5 {[%clk 0:01:27]}  Re7 {[%clk 0:01:03]} 29. Rc6 {[%clk 0:01:27]}  Kf7 {[%clk 0:01:01]} 30. h4 {[%clk 0:01:27]}  Kg7 {[%clk 0:00:49]} 31. Kf3 {[%clk 0:01:26]}  h5 {[%clk 0:00:42]} 32. Kf4 {[%clk 0:01:21]}  Re4+ {[%clk 0:00:42]} 33. Kf3 {[%clk 0:01:22]}  Re7 {[%clk 0:00:42]} 34. Kf4 {[%clk 0:01:22]}  Re4+ {[%clk 0:00:23]} 35. Kf3 {[%clk 0:01:22]}  Re7 {[%clk 0:00:23]} 1/2-1/2


[Site "https://www.chess.com"]

[Event "Titled Tuesday Blitz February 15 Early 2022"]
[White "Mejia, Cherry Ann"]
[Black "Loy, Konstantin"]
[WhiteFideId "5206880"]
[BlackFideId "14122499"]
[WhiteElo "2007"]
[BlackElo "2084"]
[Result "1/2-1/2"]
[Round "07"]
[TimeControl "180+1"]
[Date "2022.02.15"]
[WhiteClock "0:00:20"]
[BlackClock "0:00:06"]

1. e4 {[%clk 0:03:00]}  c5 {[%clk 0:02:59]} 2. Nc3 {[%clk 0:03:00]}  Nc6 {[%clk 0:02:59]} 3. g3 {[%clk 0:03:00]}  g6 {[%clk 0:03:00]} 4. d3 {[%clk 0:02:58]}  Bg7 {[%clk 0:02:59]} 5. Bg2 {[%clk 0:02:59]}  e6 {[%clk 0:02:59]} 6. Be3 {[%clk 0:02:59]}  d6 {[%clk 0:03:00]} 7. Qd2 {[%clk 0:02:59]}  Rb8 {[%clk 0:02:58]} 8. Nge2 {[%clk 0:02:59]}  Nd4 {[%clk 0:02:57]} 9. Nc1 {[%clk 0:02:58]}  b5 {[%clk 0:02:55]} 10. Nd1 {[%clk 0:02:58]}  b4 {[%clk 0:02:53]} 11. c3 {[%clk 0:02:58]}  bxc3 {[%clk 0:02:53]} 12. bxc3 {[%clk 0:02:59]}  Nc6 {[%clk 0:02:54]} 13. Ne2 {[%clk 0:02:54]}  Qa5 {[%clk 0:02:50]} 14. O-O {[%clk 0:02:38]}  Nge7 {[%clk 0:02:50]} 15. Bh6 {[%clk 0:02:31]}  O-O {[%clk 0:02:49]} 16. Bxg7 {[%clk 0:02:31]}  Kxg7 {[%clk 0:02:50]} 17. Ne3 {[%clk 0:02:32]}  Ba6 {[%clk 0:02:43]} 18. Rfb1 {[%clk 0:02:30]}  Ne5 {[%clk 0:02:22]} 19. Nc1 {[%clk 0:02:23]}  Qa3 {[%clk 0:01:35]} 20. f4 {[%clk 0:02:18]}  N5c6 {[%clk 0:01:32]} 21. d4 {[%clk 0:02:04]}  cxd4 {[%clk 0:01:24]} 22. cxd4 {[%clk 0:02:05]}  Qa5 {[%clk 0:01:22]} 23. Qxa5 {[%clk 0:01:36]}  Nxa5 {[%clk 0:01:23]} 24. Bf1 {[%clk 0:01:25]}  Bxf1 {[%clk 0:01:20]} 25. Kxf1 {[%clk 0:01:26]}  d5 {[%clk 0:01:18]} 26. exd5 {[%clk 0:01:24]}  Nxd5 {[%clk 0:01:19]} 27. Nxd5 {[%clk 0:01:23]}  exd5 {[%clk 0:01:20]} 28. Nd3 {[%clk 0:01:14]}  Nc4 {[%clk 0:01:19]} 29. Kf2 {[%clk 0:01:14]}  Rfe8 {[%clk 0:01:05]} 30. Rb3 {[%clk 0:01:03]}  Rb6 {[%clk 0:00:58]} 31. Rab1 {[%clk 0:00:56]}  Re4 {[%clk 0:00:56]} 32. Ne5 {[%clk 0:00:37]}  Rxd4 {[%clk 0:00:50]} 33. Nxc4 {[%clk 0:00:35]}  Rxb3 {[%clk 0:00:43]} 34. axb3 {[%clk 0:00:34]}  dxc4 {[%clk 0:00:43]} 35. bxc4 {[%clk 0:00:34]}  Rxc4 {[%clk 0:00:43]} 36. Ra1 {[%clk 0:00:35]}  Rc7 {[%clk 0:00:39]} 37. Ra6 {[%clk 0:00:35]}  h5 {[%clk 0:00:36]} 38. Kf3 {[%clk 0:00:31]}  Kf8 {[%clk 0:00:35]} 39. h3 {[%clk 0:00:28]}  Ke7 {[%clk 0:00:33]} 40. g4 {[%clk 0:00:27]}  hxg4+ {[%clk 0:00:33]} 41. hxg4 {[%clk 0:00:26]}  Kd8 {[%clk 0:00:34]} 42. Ke4 {[%clk 0:00:25]}  Kc8 {[%clk 0:00:34]} 43. Ke5 {[%clk 0:00:22]}  Kb7 {[%clk 0:00:34]} 44. Ra1 {[%clk 0:00:21]}  Rc6 {[%clk 0:00:33]} 45. f5 {[%clk 0:00:20]}  gxf5 {[%clk 0:00:23]} 46. Kxf5 {[%clk 0:00:21]}  a6 {[%clk 0:00:21]} 47. g5 {[%clk 0:00:20]}  Kb6 {[%clk 0:00:18]} 48. Re1 {[%clk 0:00:20]}  a5 {[%clk 0:00:17]} 49. Re7 {[%clk 0:00:19]}  Rc7 {[%clk 0:00:13]} 50. Kf6 {[%clk 0:00:15]}  Rxe7 {[%clk 0:00:09]} 51. Kxe7 {[%clk 0:00:16]}  a4 {[%clk 0:00:10]} 52. Kxf7 {[%clk 0:00:17]}  a3 {[%clk 0:00:10]} 53. g6 {[%clk 0:00:17]}  a2 {[%clk 0:00:11]} 54. g7 {[%clk 0:00:18]}  a1=Q {[%clk 0:00:12]} 55. g8=Q {[%clk 0:00:19]}  Qf1+ {[%clk 0:00:11]} 56. Kg7 {[%clk 0:00:19]}  Qg2+ {[%clk 0:00:09]} 57. Kf8 {[%clk 0:00:19]}  Qxg8+ {[%clk 0:00:06]} 58. Kxg8 {[%clk 0:00:20]} 1/2-1/2


[Site "https://www.chess.com"]

[Event "Titled Tuesday Blitz February 15 Early 2022"]
[White "Mikhailovsky, Vladimir"]
[Black "Vovk, Orest"]
[WhiteFideId "34105414"]
[BlackFideId "14113490"]
[WhiteElo "2739"]
[BlackElo "2540"]
[Result "1-0"]
[Round "07"]
[TimeControl "180+1"]
[Date "2022.02.15"]
[WhiteClock "0:00:19"]
[BlackClock "0:00:03"]

1. d4 {[%clk 0:02:59]}  e5 {[%clk 0:02:56]} 2. dxe5 {[%clk 0:02:58]}  Nc6 {[%clk 0:02:56]} 3. Nf3 {[%clk 0:02:57]}  Qe7 {[%clk 0:02:55]} 4. Nc3 {[%clk 0:02:57]}  Nxe5 {[%clk 0:02:55]} 5. Nd5 {[%clk 0:02:57]}  Nxf3+ {[%clk 0:02:54]} 6. gxf3 {[%clk 0:02:58]}  Qd8 {[%clk 0:02:55]} 7. Bf4 {[%clk 0:02:57]}  d6 {[%clk 0:02:55]} 8. e4 {[%clk 0:02:57]}  Be6 {[%clk 0:02:56]} 9. Bc4 {[%clk 0:02:54]}  c6 {[%clk 0:02:55]} 10. Ne3 {[%clk 0:02:55]}  Qa5+ {[%clk 0:02:54]} 11. c3 {[%clk 0:02:55]}  O-O-O {[%clk 0:02:50]} 12. Qb3 {[%clk 0:02:50]}  Bxc4 {[%clk 0:02:35]} 13. Nxc4 {[%clk 0:02:51]}  Qh5 {[%clk 0:02:23]} 14. O-O-O {[%clk 0:02:44]}  Qxf3 {[%clk 0:02:15]} 15. Bg3 {[%clk 0:02:21]}  Qxe4 {[%clk 0:01:49]} 16. Rhe1 {[%clk 0:02:09]}  Qf5 {[%clk 0:01:45]} 17. Bxd6 {[%clk 0:01:57]}  Bxd6 {[%clk 0:01:21]} 18. Nxd6+ {[%clk 0:01:50]}  Rxd6 {[%clk 0:01:21]} 19. Re8+ {[%clk 0:01:47]}  Kc7 {[%clk 0:01:13]} 20. Rxd6 {[%clk 0:01:45]}  Kxd6 {[%clk 0:01:06]} 21. Qxb7 {[%clk 0:01:44]}  Qg5+ {[%clk 0:00:44]} 22. Kc2 {[%clk 0:01:26]}  Qf5+ {[%clk 0:00:37]} 23. Kc1 {[%clk 0:00:58]}  Qg5+ {[%clk 0:00:34]} 24. Kd1 {[%clk 0:00:50]}  Qg4+ {[%clk 0:00:20]} 25. Ke1 {[%clk 0:00:39]}  Qg1+ {[%clk 0:00:15]} 26. Ke2 {[%clk 0:00:35]}  Qg4+ {[%clk 0:00:14]} 27. Kf1 {[%clk 0:00:16]}  Qd1+ {[%clk 0:00:07]} 28. Kg2 {[%clk 0:00:16]}  Qg4+ {[%clk 0:00:07]} 29. Kf1 {[%clk 0:00:17]}  Qd1+ {[%clk 0:00:07]} 30. Re1 {[%clk 0:00:17]}  Qd3+ {[%clk 0:00:07]} 31. Kg1 {[%clk 0:00:18]}  Nf6 {[%clk 0:00:06]} 32. Qe7+ {[%clk 0:00:17]}  Kd5 {[%clk 0:00:04]} 33. Re5+ {[%clk 0:00:18]}  Kc4 {[%clk 0:00:03]} 34. Qc5# {[%clk 0:00:19]} 1-0


[Site "https://www.chess.com"]

[Event "Titled Tuesday Blitz February 15 Early 2022"]
[White "Milosevic, Milos"]
[Black "Yuan, Qingyu"]
[WhiteFideId "964875"]
[BlackFideId "8609772"]
[WhiteElo "2198"]
[BlackElo "2359"]
[Result "0-1"]
[Round "07"]
[TimeControl "180+1"]
[Date "2022.02.15"]
[WhiteClock "0:00:36"]
[BlackClock "0:01:23"]

1. g3 {[%clk 0:03:00]}  d5 {[%clk 0:02:59]} 2. Bg2 {[%clk 0:02:59]}  e5 {[%clk 0:02:59]} 3. d3 {[%clk 0:02:59]}  c5 {[%clk 0:02:59]} 4. e4 {[%clk 0:03:00]}  d4 {[%clk 0:02:56]} 5. f4 {[%clk 0:03:00]}  Nc6 {[%clk 0:02:55]} 6. Nf3 {[%clk 0:02:58]}  Bd6 {[%clk 0:02:48]} 7. O-O {[%clk 0:02:52]}  Nge7 {[%clk 0:02:41]} 8. f5 {[%clk 0:02:49]}  h5 {[%clk 0:02:34]} 9. f6 {[%clk 0:02:26]}  gxf6 {[%clk 0:02:32]} 10. Nh4 {[%clk 0:02:26]}  Ng6 {[%clk 0:02:25]} 11. Nf5 {[%clk 0:02:26]}  Bf8 {[%clk 0:02:21]} 12. h4 {[%clk 0:02:25]}  Be6 {[%clk 0:02:20]} 13. Bf3 {[%clk 0:02:18]}  Qd7 {[%clk 0:02:07]} 14. Bxh5 {[%clk 0:02:17]}  O-O-O {[%clk 0:02:07]} 15. a4 {[%clk 0:02:08]}  Be7 {[%clk 0:02:00]} 16. Na3 {[%clk 0:02:01]}  Rdg8 {[%clk 0:01:59]} 17. Kh2 {[%clk 0:01:55]}  Nf4 {[%clk 0:01:36]} 18. Rxf4 {[%clk 0:01:38]}  exf4 {[%clk 0:01:34]} 19. Bxf4 {[%clk 0:01:39]}  Bxf5 {[%clk 0:01:33]} 20. exf5 {[%clk 0:01:38]}  Qxf5 {[%clk 0:01:33]} 21. Bxf7 {[%clk 0:00:51]}  Rxh4+ {[%clk 0:01:29]} 22. Kg2 {[%clk 0:00:49]}  Qh3+ {[%clk 0:01:23]} 23. Kf2 {[%clk 0:00:36]}  Rxf4+ {[%clk 0:01:23]} 0-1


[Site "https://www.chess.com"]